[Event "Late-Titled-Tuesday-Blitz-June-04-2024"]
[Site "Chess.com"]
[Date "2024.06.04"]
[Round "8"]
[White "teresin05"]
[Black "Fore_Man"]
[Result "0-1"]
[WhiteElo "2307"]
[BlackElo "2234"]
[TimeControl "180+1"]
[EndTime "15:23:26 PDT"]
[Termination "Fore_Man won by checkmate"]

1. e4 {[%clk 0:03:00.9]} 1... Nc6 {[%clk 0:02:59.8]} 2. d4 {[%clk 0:02:55.6]}
2... d5 {[%clk 0:02:58.6]} 3. e5 {[%clk 0:02:51.8]} 3... f6 {[%clk 0:02:54.8]}
4. f4 {[%clk 0:02:50.7]} 4... fxe5 {[%clk 0:02:51.6]} 5. fxe5 {[%clk 0:02:50.4]}
5... Bf5 {[%clk 0:02:43.9]} 6. Nf3 {[%clk 0:02:44.4]} 6... Qd7 {[%clk
0:02:42.2]} 7. Bb5 {[%clk 0:02:30.2]} 7... O-O-O {[%clk 0:02:35]} 8. Nc3 {[%clk
0:02:28.4]} 8... e6 {[%clk 0:02:34.3]} 9. Bg5 {[%clk 0:02:26.8]} 9... Be7 {[%clk
0:02:33.4]} 10. Qd2 {[%clk 0:02:21.2]} 10... Bxg5 {[%clk 0:02:30.4]} 11. Nxg5
{[%clk 0:02:19.5]} 11... Nh6 {[%clk 0:02:28.1]} 12. h3 {[%clk 0:02:18.7]} 12...
Nf7 {[%clk 0:02:26.6]} 13. O-O-O {[%clk 0:02:14.7]} 13... Nxg5 {[%clk
0:02:24.3]} 14. Qxg5 {[%clk 0:02:15.6]} 14... a6 {[%clk 0:02:23.6]} 15. Bxc6
{[%clk 0:02:08.6]} 15... Qxc6 {[%clk 0:02:24.5]} 16. g4 {[%clk 0:02:04.4]} 16...
Bg6 {[%clk 0:02:23.3]} 17. h4 {[%clk 0:02:04.3]} 17... b5 {[%clk 0:02:04.7]} 18.
a3 {[%clk 0:02:02.2]} 18... a5 {[%clk 0:02:03.8]} 19. h5 {[%clk 0:02:00.2]}
19... Bxc2 {[%clk 0:02:03.4]} 20. Kxc2 {[%clk 0:01:59.9]} 20... b4 {[%clk
0:02:03.7]} 21. axb4 {[%clk 0:01:59.3]} 21... axb4 {[%clk 0:02:04.6]} 22. Qxg7
{[%clk 0:01:56.2]} 22... bxc3 {[%clk 0:02:03]} 23. bxc3 {[%clk 0:01:55.4]} 23...
Rhg8 {[%clk 0:01:54.5]} 24. Qxh7 {[%clk 0:01:51.8]} 24... Rxg4 {[%clk 0:01:54]}
25. Rhg1 {[%clk 0:01:49.6]} 25... Rf4 {[%clk 0:01:50.2]} 26. Rg2 {[%clk
0:01:38.9]} 26... Qc4 {[%clk 0:01:43.5]} 27. Qg6 {[%clk 0:01:29.3]} 27... Qa2+
{[%clk 0:01:29.6]} 28. Kd3 {[%clk 0:01:29.2]} 28... Rf3# {[%clk 0:01:26]} 0-1

[Event "Late-Titled-Tuesday-Blitz-June-04-2024"]
[Site "Chess.com"]
[Date "2024.06.04"]
[Round "8"]
[White "AlphaPerseii"]
[Black "Jahonas"]
[Result "1-0"]
[WhiteElo "2365"]
[BlackElo "2433"]
[TimeControl "180+1"]
[EndTime "15:23:31 PDT"]
[Termination "AlphaPerseii won by resignation"]

1. e4 {[%clk 0:02:59.5]} 1... c6 {[%clk 0:02:59.5]} 2. d4 {[%clk 0:02:59]} 2...
d5 {[%clk 0:02:59.7]} 3. e5 {[%clk 0:02:59.6]} 3... Bf5 {[%clk 0:02:59.6]} 4. h4
{[%clk 0:02:59.3]} 4... h5 {[%clk 0:02:59.9]} 5. c4 {[%clk 0:03:00]} 5... e6
{[%clk 0:02:59.8]} 6. Nc3 {[%clk 0:03:00.7]} 6... Ne7 {[%clk 0:02:57.7]} 7. Nge2
{[%clk 0:03:01.3]} 7... dxc4 {[%clk 0:02:56.7]} 8. Ng3 {[%clk 0:03:02]} 8... Bg6
{[%clk 0:02:55.5]} 9. Bg5 {[%clk 0:03:02.7]} 9... Qa5 {[%clk 0:02:49.6]} 10.
Bxc4 {[%clk 0:02:53]} 10... Nd5 {[%clk 0:02:48.5]} 11. O-O {[%clk 0:02:44.4]}
11... Nxc3 {[%clk 0:02:47.3]} 12. bxc3 {[%clk 0:02:45.3]} 12... Nd7 {[%clk
0:02:31.2]} 13. Bd3 {[%clk 0:02:25.2]} 13... Bxd3 {[%clk 0:02:17.1]} 14. Qxd3
{[%clk 0:02:26.1]} 14... Ba3 {[%clk 0:01:57.7]} 15. Rab1 {[%clk 0:02:18.1]}
15... Nb6 {[%clk 0:01:55.3]} 16. f4 {[%clk 0:02:15.6]} 16... Qd5 {[%clk
0:01:21.9]} 17. f5 {[%clk 0:01:55]} 17... c5 {[%clk 0:01:17.6]} 18. fxe6 {[%clk
0:01:50.7]} 18... Qxe6 {[%clk 0:01:16.3]} 19. c4 {[%clk 0:01:38.9]} 19... cxd4
{[%clk 0:01:11.8]} 20. Qxa3 {[%clk 0:01:37.9]} 20... f6 {[%clk 0:00:57]} 21.
exf6 {[%clk 0:01:36]} 1-0

[Event "Late-Titled-Tuesday-Blitz-June-04-2024"]
[Site "Chess.com"]
[Date "2024.06.04"]
[Round "8"]
[White "dosto07"]
[Black "MrEscacs"]
[Result "1-0"]
[WhiteElo "2510"]
[BlackElo "2173"]
[TimeControl "180+1"]
[EndTime "15:23:35 PDT"]
[Termination "dosto07 won by resignation"]

1. e4 {[%clk 0:03:00.9]} 1... Nf6 {[%clk 0:02:59.6]} 2. e5 {[%clk 0:03:00.4]}
2... Nd5 {[%clk 0:02:59.8]} 3. d4 {[%clk 0:03:01.3]} 3... d6 {[%clk 0:02:59.7]}
4. Nf3 {[%clk 0:03:01.6]} 4... Bg4 {[%clk 0:02:59.3]} 5. Be2 {[%clk 0:03:01.4]}
5... e6 {[%clk 0:02:59.7]} 6. O-O {[%clk 0:03:01.6]} 6... Be7 {[%clk 0:02:59.8]}
7. c4 {[%clk 0:02:59.6]} 7... Nb6 {[%clk 0:02:58.4]} 8. h3 {[%clk 0:02:59.9]}
8... Bh5 {[%clk 0:02:58]} 9. Nc3 {[%clk 0:03:00.2]} 9... O-O {[%clk 0:02:57.6]}
10. Be3 {[%clk 0:02:53.7]} 10... d5 {[%clk 0:02:46.3]} 11. c5 {[%clk 0:02:51.6]}
11... Bxf3 {[%clk 0:02:44.5]} 12. gxf3 {[%clk 0:02:50.3]} 12... Nc8 {[%clk
0:02:39.7]} 13. f4 {[%clk 0:02:50.5]} 13... Bh4 {[%clk 0:02:36.3]} 14. Bd3
{[%clk 0:02:49.5]} 14... g6 {[%clk 0:02:33.8]} 15. Kh2 {[%clk 0:02:43]} 15...
Ne7 {[%clk 0:02:33]} 16. Rg1 {[%clk 0:02:40.2]} 16... Kh8 {[%clk 0:02:29.4]} 17.
Rg4 {[%clk 0:02:28.6]} 17... Nf5 {[%clk 0:02:27]} 18. Ne2 {[%clk 0:02:24.2]}
18... Nc6 {[%clk 0:02:15.7]} 19. Bxf5 {[%clk 0:02:19.1]} 19... gxf5 {[%clk
0:02:07.6]} 20. Rg2 {[%clk 0:02:15]} 20... Qe7 {[%clk 0:02:03.6]} 21. Ng1 {[%clk
0:02:10.7]} 21... Rg8 {[%clk 0:01:27.6]} 22. Rxg8+ {[%clk 0:02:08.6]} 22... Rxg8
{[%clk 0:01:26.5]} 23. Qh5 {[%clk 0:02:09.5]} 23... Rg7 {[%clk 0:00:34.4]} 24.
Nf3 {[%clk 0:02:08.7]} 1-0

[Event "Late-Titled-Tuesday-Blitz-June-04-2024"]
[Site "Chess.com"]
[Date "2024.06.04"]
[Round "8"]
[White "ericovski"]
[Black "Bryanl106"]
[Result "0-1"]
[WhiteElo "2574"]
[BlackElo "2720"]
[TimeControl "180+1"]
[EndTime "15:23:53 PDT"]
[Termination "Bryanl106 won by resignation"]

1. d4 {[%clk 0:02:59.7]} 1... Nf6 {[%clk 0:02:59.9]} 2. c4 {[%clk 0:02:59.9]}
2... c5 {[%clk 0:02:57.2]} 3. d5 {[%clk 0:02:58.1]} 3... g6 {[%clk 0:02:57.1]}
4. Nc3 {[%clk 0:02:57.3]} 4... Bg7 {[%clk 0:02:56.1]} 5. Nf3 {[%clk 0:02:57.7]}
5... d6 {[%clk 0:02:56.6]} 6. e4 {[%clk 0:02:56]} 6... O-O {[%clk 0:02:57.2]} 7.
Bd3 {[%clk 0:02:55.9]} 7... e6 {[%clk 0:02:57.4]} 8. O-O {[%clk 0:02:55.2]} 8...
exd5 {[%clk 0:02:56.2]} 9. cxd5 {[%clk 0:02:56.1]} 9... Bg4 {[%clk 0:02:55.8]}
10. Bf4 {[%clk 0:02:53.5]} 10... Re8 {[%clk 0:02:55.4]} 11. Re1 {[%clk
0:02:52.9]} 11... a6 {[%clk 0:02:54.8]} 12. a4 {[%clk 0:02:52.6]} 12... Nh5
{[%clk 0:02:50.9]} 13. Be3 {[%clk 0:02:51.5]} 13... Nd7 {[%clk 0:02:49.9]} 14.
h3 {[%clk 0:02:51.5]} 14... Bxf3 {[%clk 0:02:49.4]} 15. Qxf3 {[%clk 0:02:51.7]}
15... Ne5 {[%clk 0:02:48.2]} 16. Qe2 {[%clk 0:02:51.8]} 16... Qh4 {[%clk
0:02:48.7]} 17. Bc2 {[%clk 0:02:46.2]} 17... Nf4 {[%clk 0:02:47.8]} 18. Bxf4
{[%clk 0:02:35.1]} 18... Qxf4 {[%clk 0:02:48.7]} 19. g3 {[%clk 0:02:27.9]} 19...
Nf3+ {[%clk 0:02:41.1]} 20. Kh1 {[%clk 0:02:26.1]} 20... Qf6 {[%clk 0:02:41.1]}
21. Red1 {[%clk 0:02:21.7]} 21... Nd4 {[%clk 0:02:40.1]} 22. Qd2 {[%clk
0:02:19.2]} 22... Re5 {[%clk 0:02:37.9]} 23. f4 {[%clk 0:02:15.4]} 23... Rh5
{[%clk 0:02:35.1]} 24. Kg2 {[%clk 0:02:14.7]} 24... g5 {[%clk 0:02:31.8]} 25.
Rf1 {[%clk 0:01:56.8]} 25... gxf4 {[%clk 0:02:31.1]} 26. Rxf4 {[%clk 0:01:56.1]}
26... Qh6 {[%clk 0:02:20.6]} 27. h4 {[%clk 0:01:49.7]} 27... Kh8 {[%clk
0:02:06.3]} 28. Raf1 {[%clk 0:01:45]} 28... Be5 {[%clk 0:02:05.3]} 29. R4f2
{[%clk 0:01:44.4]} 29... Qxd2 {[%clk 0:02:04.5]} 30. Rxd2 {[%clk 0:01:44.4]}
30... Rg8 {[%clk 0:02:04.6]} 31. Rxf7 {[%clk 0:01:40]} 31... Rxg3+ {[%clk
0:02:04.4]} 32. Kf1 {[%clk 0:01:37.8]} 32... Rxh4 {[%clk 0:02:03.1]} 33. Ne2
{[%clk 0:01:27.1]} 33... Rh1+ {[%clk 0:01:58.3]} 34. Kf2 {[%clk 0:01:27.3]}
34... Rh2+ {[%clk 0:01:58.5]} 35. Kf1 {[%clk 0:01:27.6]} 35... Nf3 {[%clk
0:01:40.1]} 36. Nxg3 {[%clk 0:01:11.9]} 36... Nxd2+ {[%clk 0:01:39.2]} 37. Kg1
{[%clk 0:01:12.3]} 37... Bxg3 {[%clk 0:01:39.7]} 0-1

[Event "Late-Titled-Tuesday-Blitz-June-04-2024"]
[Site "Chess.com"]
[Date "2024.06.04"]
[Round "8"]
[White "KingCyber19"]
[Black "Romkachess"]
[Result "0-1"]
[WhiteElo "2606"]
[BlackElo "2532"]
[TimeControl "180+1"]
[EndTime "15:23:59 PDT"]
[Termination "Romkachess won by resignation"]

1. d4 {[%clk 0:02:56.6]} 1... Nf6 {[%clk 0:02:59.6]} 2. c4 {[%clk 0:02:56.6]}
2... e6 {[%clk 0:03:00.2]} 3. Nc3 {[%clk 0:02:55.4]} 3... Bb4 {[%clk 0:03:00.4]}
4. e3 {[%clk 0:02:55.6]} 4... O-O {[%clk 0:02:55.1]} 5. Bd3 {[%clk 0:02:54.9]}
5... d5 {[%clk 0:02:54]} 6. Ne2 {[%clk 0:02:55]} 6... c5 {[%clk 0:02:53.5]} 7.
O-O {[%clk 0:02:53.2]} 7... cxd4 {[%clk 0:02:53.9]} 8. exd4 {[%clk 0:02:52]}
8... dxc4 {[%clk 0:02:54.4]} 9. Bxc4 {[%clk 0:02:52.9]} 9... b6 {[%clk
0:02:54.7]} 10. d5 {[%clk 0:02:47.9]} 10... exd5 {[%clk 0:02:50.4]} 11. Nxd5
{[%clk 0:02:48.8]} 11... Nc6 {[%clk 0:02:14.7]} 12. Qa4 {[%clk 0:02:16.1]} 12...
Nxd5 {[%clk 0:02:07.5]} 13. Qxc6 {[%clk 0:02:15.5]} 13... Be6 {[%clk 0:02:06.6]}
14. Nd4 {[%clk 0:01:52.5]} 14... Rc8 {[%clk 0:01:52]} 15. Qb5 {[%clk 0:01:50.8]}
15... Bc5 {[%clk 0:01:23.9]} 16. Nxe6 {[%clk 0:01:44.2]} 16... fxe6 {[%clk
0:01:24.8]} 17. Bd2 {[%clk 0:01:29.2]} 17... Rxf2 {[%clk 0:01:13.1]} 18. Rxf2
{[%clk 0:01:24.9]} 18... Bxf2+ {[%clk 0:01:14]} 19. Kxf2 {[%clk 0:01:24.7]}
19... Qh4+ {[%clk 0:01:14.2]} 20. Kg1 {[%clk 0:01:20.8]} 20... Qxc4 {[%clk
0:01:13]} 21. Qd7 {[%clk 0:01:17.8]} 21... Nf6 {[%clk 0:00:57.9]} 22. Bc3 {[%clk
0:01:13.6]} 22... Nxd7 {[%clk 0:00:57.3]} 0-1

[Event "Late-Titled-Tuesday-Blitz-June-04-2024"]
[Site "Chess.com"]
[Date "2024.06.04"]
[Round "8"]
[White "Synctel"]
[Black "YellowJacek"]
[Result "1-0"]
[WhiteElo "2107"]
[BlackElo "2371"]
[TimeControl "180+1"]
[EndTime "15:24:03 PDT"]
[Termination "Synctel won by resignation"]

1. d4 {[%clk 0:03:00.9]} 1... Nf6 {[%clk 0:02:59.9]} 2. Nf3 {[%clk 0:03:01]}
2... g6 {[%clk 0:03:00]} 3. Bf4 {[%clk 0:03:00.6]} 3... Bg7 {[%clk 0:02:58.9]}
4. e3 {[%clk 0:03:01]} 4... d6 {[%clk 0:02:59]} 5. h3 {[%clk 0:02:59.5]} 5...
O-O {[%clk 0:02:57.4]} 6. Be2 {[%clk 0:02:59.7]} 6... Be6 {[%clk 0:02:56.9]} 7.
O-O {[%clk 0:02:54.6]} 7... c5 {[%clk 0:02:56.9]} 8. c3 {[%clk 0:02:50.6]} 8...
Qb6 {[%clk 0:02:56.8]} 9. Qc1 {[%clk 0:02:29.8]} 9... Rc8 {[%clk 0:02:56]} 10.
Nbd2 {[%clk 0:02:22.1]} 10... Nc6 {[%clk 0:02:54.9]} 11. dxc5 {[%clk 0:02:07.8]}
11... Qxc5 {[%clk 0:02:48.8]} 12. Nb3 {[%clk 0:02:04.6]} 12... Qb6 {[%clk
0:02:48.2]} 13. Nbd4 {[%clk 0:02:04.6]} 13... Bd7 {[%clk 0:02:44.9]} 14. Nxc6
{[%clk 0:01:52.1]} 14... Bxc6 {[%clk 0:02:41.2]} 15. Bh2 {[%clk 0:01:39.1]}
15... a6 {[%clk 0:02:39.2]} 16. Nd4 {[%clk 0:01:35.9]} 16... Bd7 {[%clk
0:02:37.9]} 17. Bf3 {[%clk 0:01:34.9]} 17... Rab8 {[%clk 0:02:35]} 18. Qd2
{[%clk 0:01:32.3]} 18... Qc7 {[%clk 0:02:28.4]} 19. a4 {[%clk 0:01:14.6]} 19...
b5 {[%clk 0:02:25.5]} 20. axb5 {[%clk 0:01:14.2]} 20... axb5 {[%clk 0:02:26.4]}
21. Ra3 {[%clk 0:00:44.9]} 21... e5 {[%clk 0:02:11.2]} 22. Nc2 {[%clk
0:00:43.1]} 22... Be6 {[%clk 0:01:55.7]} 23. Rfa1 {[%clk 0:00:38.6]} 23... d5
{[%clk 0:01:55.7]} 24. Nb4 {[%clk 0:00:36.1]} 24... e4 {[%clk 0:01:54.4]} 25.
Be2 {[%clk 0:00:35.2]} 25... Qd8 {[%clk 0:01:47.3]} 26. Bxb8 {[%clk 0:00:34.3]}
26... Rxb8 {[%clk 0:01:48.2]} 27. Nc6 {[%clk 0:00:33.3]} 27... Qe8 {[%clk
0:01:43.4]} 28. Nxb8 {[%clk 0:00:33.4]} 28... Qxb8 {[%clk 0:01:44.3]} 29. Ra8
{[%clk 0:00:33.5]} 1-0

[Event "Late-Titled-Tuesday-Blitz-June-04-2024"]
[Site "Chess.com"]
[Date "2024.06.04"]
[Round "8"]
[White "Sl4werThanYou"]
[Black "FuenfgegenWilly"]
[Result "1-0"]
[WhiteElo "2740"]
[BlackElo "2502"]
[TimeControl "180+1"]
[EndTime "15:24:13 PDT"]
[Termination "Sl4werThanYou won by resignation"]

1. d4 {[%clk 0:02:50.6]} 1... d5 {[%clk 0:03:00]} 2. c4 {[%clk 0:02:50.9]} 2...
e5 {[%clk 0:03:00.4]} 3. dxe5 {[%clk 0:02:49.8]} 3... d4 {[%clk 0:03:01.3]} 4.
Nf3 {[%clk 0:02:49.1]} 4... Nc6 {[%clk 0:03:01.8]} 5. g3 {[%clk 0:02:45.9]} 5...
Nge7 {[%clk 0:03:02.1]} 6. Bg2 {[%clk 0:02:46.1]} 6... Ng6 {[%clk 0:03:02.7]} 7.
O-O {[%clk 0:02:43.4]} 7... Ngxe5 {[%clk 0:03:02.7]} 8. Nxe5 {[%clk 0:02:43.4]}
8... Nxe5 {[%clk 0:03:03.6]} 9. e3 {[%clk 0:02:42.3]} 9... Bc5 {[%clk
0:02:47.2]} 10. b4 {[%clk 0:02:38.4]} 10... Be7 {[%clk 0:02:35.9]} 11. c5 {[%clk
0:02:31.2]} 11... Bg4 {[%clk 0:02:20]} 12. f3 {[%clk 0:02:25]} 12... Bh5 {[%clk
0:02:15.4]} 13. g4 {[%clk 0:02:21.4]} 13... Bg6 {[%clk 0:02:14.9]} 14. f4 {[%clk
0:02:22]} 14... Bd3 {[%clk 0:01:59.4]} 15. fxe5 {[%clk 0:02:19.2]} 15... Bxf1
{[%clk 0:01:58.8]} 16. Qxf1 {[%clk 0:02:19.7]} 16... dxe3 {[%clk 0:01:50]} 17.
Bxe3 {[%clk 0:02:19.4]} 17... O-O {[%clk 0:01:46.9]} 18. Nc3 {[%clk 0:02:19.9]}
18... Bg5 {[%clk 0:01:45.9]} 19. Qf2 {[%clk 0:02:12.5]} 19... Qe7 {[%clk
0:01:38.5]} 20. Nd5 {[%clk 0:02:05.3]} 20... Qxe5 {[%clk 0:01:29.5]} 21. Bd4
{[%clk 0:02:05.7]} 21... Qe8 {[%clk 0:01:03.1]} 22. Nxc7 {[%clk 0:01:59.4]}
22... Qd7 {[%clk 0:01:04]} 23. Nxa8 {[%clk 0:01:58.9]} 23... Rxa8 {[%clk
0:01:04.9]} 24. Re1 {[%clk 0:01:57.8]} 24... Rd8 {[%clk 0:01:04.7]} 25. Be3
{[%clk 0:01:51.5]} 25... Qxg4 {[%clk 0:01:00.8]} 26. Bxg5 {[%clk 0:01:49.5]}
26... Qxg5 {[%clk 0:01:01.7]} 27. Kh1 {[%clk 0:01:49.3]} 27... h5 {[%clk
0:00:59.4]} 28. Bxb7 {[%clk 0:01:48.6]} 28... Rd2 {[%clk 0:00:58.5]} 29. Re8+
{[%clk 0:01:40]} 29... Kh7 {[%clk 0:00:58.2]} 30. Be4+ {[%clk 0:01:40.8]} 30...
f5 {[%clk 0:00:51.5]} 31. Qxf5+ {[%clk 0:01:40.1]} 31... Qxf5 {[%clk 0:00:51.7]}
32. Bxf5+ {[%clk 0:01:41]} 32... g6 {[%clk 0:00:52.5]} 33. c6 {[%clk 0:01:41.6]}
33... h4 {[%clk 0:00:44.4]} 34. c7 {[%clk 0:01:39.8]} 34... h3 {[%clk
0:00:44.7]} 35. Bxh3 {[%clk 0:01:37.6]} 1-0

[Event "Late-Titled-Tuesday-Blitz-June-04-2024"]
[Site "Chess.com"]
[Date "2024.06.04"]
[Round "8"]
[White "meme0105"]
[Black "mfschulz"]
[Result "0-1"]
[WhiteElo "1883"]
[BlackElo "2246"]
[TimeControl "180+1"]
[EndTime "15:24:13 PDT"]
[Termination "mfschulz won by resignation"]

1. e4 {[%clk 0:03:00.9]} 1... g6 {[%clk 0:02:58.9]} 2. d4 {[%clk 0:03:00.5]}
2... Bg7 {[%clk 0:02:58.9]} 3. f4 {[%clk 0:03:00.2]} 3... d5 {[%clk 0:02:55.9]}
4. e5 {[%clk 0:02:56.9]} 4... h5 {[%clk 0:02:56.1]} 5. c4 {[%clk 0:02:55.1]}
5... c6 {[%clk 0:02:54.8]} 6. Nf3 {[%clk 0:02:53.9]} 6... Nh6 {[%clk 0:02:54.6]}
7. h3 {[%clk 0:02:53.5]} 7... Bf5 {[%clk 0:02:45.3]} 8. Nc3 {[%clk 0:02:44.1]}
8... O-O {[%clk 0:02:42.6]} 9. Qb3 {[%clk 0:02:42.6]} 9... dxc4 {[%clk
0:02:39.3]} 10. Qxb7 {[%clk 0:02:41.5]} 10... Qb6 {[%clk 0:02:37.1]} 11. Qxb6
{[%clk 0:02:32.7]} 11... axb6 {[%clk 0:02:36.6]} 12. Bxc4 {[%clk 0:02:33.3]}
12... e6 {[%clk 0:02:30.1]} 13. Nh4 {[%clk 0:02:24]} 13... Rd8 {[%clk
0:02:25.5]} 14. Be3 {[%clk 0:02:16.7]} 14... Na6 {[%clk 0:02:17.9]} 15. a3
{[%clk 0:02:06.2]} 15... Nb4 {[%clk 0:02:15.4]} 16. Kf2 {[%clk 0:01:56.2]} 16...
Nc2 {[%clk 0:02:13.8]} 17. Rac1 {[%clk 0:01:56.1]} 17... Nxd4 {[%clk 0:02:12.1]}
18. Nxf5 {[%clk 0:01:49.6]} 18... Nhxf5 {[%clk 0:02:11.1]} 19. g4 {[%clk
0:01:48.8]} 19... hxg4 {[%clk 0:02:09.6]} 20. hxg4 {[%clk 0:01:49.7]} 20... Nxe3
{[%clk 0:02:09.2]} 21. Kxe3 {[%clk 0:01:50.3]} 21... c5 {[%clk 0:02:03]} 22. Nb5
{[%clk 0:01:36.3]} 22... Nxb5 {[%clk 0:01:56]} 23. Bxb5 {[%clk 0:01:36.4]} 23...
Rd4 {[%clk 0:01:54.9]} 24. Rc4 {[%clk 0:01:26.7]} 24... Rad8 {[%clk 0:01:54.6]}
25. Rh2 {[%clk 0:01:10.1]} 25... g5 {[%clk 0:01:53.7]} 26. Rf2 {[%clk
0:00:58.1]} 26... gxf4+ {[%clk 0:01:52.3]} 27. Rxf4 {[%clk 0:00:58.3]} 27... Bh6
{[%clk 0:01:51.9]} 28. Kf3 {[%clk 0:00:55.5]} 28... Bxf4 {[%clk 0:01:49.1]} 29.
b4 {[%clk 0:00:53.8]} 29... Rxc4 {[%clk 0:01:43.7]} 30. Bxc4 {[%clk 0:00:53.5]}
30... Bxe5 {[%clk 0:01:43.5]} 31. bxc5 {[%clk 0:00:53.8]} 31... bxc5 {[%clk
0:01:43.5]} 32. a4 {[%clk 0:00:54.5]} 32... Rd4 {[%clk 0:01:39.3]} 33. Bb5
{[%clk 0:00:54.4]} 33... Rf4+ {[%clk 0:01:39]} 34. Kg3 {[%clk 0:00:54.2]} 34...
Rxa4+ {[%clk 0:01:38.5]} 35. Kh4 {[%clk 0:00:54.7]} 35... Rb4 {[%clk 0:01:38.2]}
36. Bc6 {[%clk 0:00:54.4]} 36... Kg7 {[%clk 0:01:38]} 37. Kh5 {[%clk 0:00:54]}
37... Rb2 {[%clk 0:01:34.8]} 0-1

[Event "Late-Titled-Tuesday-Blitz-June-04-2024"]
[Site "Chess.com"]
[Date "2024.06.04"]
[Round "8"]
[White "Smoking_Crow"]
[Black "Bob_2004"]
[Result "1-0"]
[WhiteElo "2560"]
[BlackElo "2626"]
[TimeControl "180+1"]
[EndTime "15:24:21 PDT"]
[Termination "Smoking_Crow won by resignation"]

1. e4 {[%clk 0:02:55]} 1... c5 {[%clk 0:03:00.3]} 2. Nf3 {[%clk 0:02:54.8]} 2...
Nf6 {[%clk 0:03:01]} 3. e5 {[%clk 0:02:52.3]} 3... Nd5 {[%clk 0:03:01.4]} 4. Nc3
{[%clk 0:02:53]} 4... Nxc3 {[%clk 0:03:01.9]} 5. dxc3 {[%clk 0:02:51.5]} 5...
Nc6 {[%clk 0:03:02.8]} 6. Bf4 {[%clk 0:02:49.8]} 6... h6 {[%clk 0:03:03.3]} 7.
Bc4 {[%clk 0:02:49.3]} 7... e6 {[%clk 0:03:03.4]} 8. Qe2 {[%clk 0:02:48.9]} 8...
Qc7 {[%clk 0:03:01.9]} 9. h4 {[%clk 0:02:45.9]} 9... Na5 {[%clk 0:03:02.2]} 10.
Bd3 {[%clk 0:02:45.3]} 10... c4 {[%clk 0:03:02.8]} 11. Be4 {[%clk 0:02:45.4]}
11... f5 {[%clk 0:03:03.4]} 12. Nd4 {[%clk 0:02:35.8]} 12... fxe4 {[%clk
0:03:00.4]} 13. Qh5+ {[%clk 0:02:35.3]} 13... Kd8 {[%clk 0:03:00.7]} 14. Bg5+
{[%clk 0:02:31]} 14... Be7 {[%clk 0:02:58.8]} 15. O-O-O {[%clk 0:02:27.8]} 15...
Qb6 {[%clk 0:02:56.7]} 16. Qg6 {[%clk 0:02:25.5]} 16... hxg5 {[%clk 0:02:21]}
17. Nxe6+ {[%clk 0:02:18.3]} 17... Qxe6 {[%clk 0:02:21.9]} 18. Qxe6 {[%clk
0:02:18.6]} 18... Nc6 {[%clk 0:02:18.5]} 19. Qxc4 {[%clk 0:02:08.7]} 19... gxh4
{[%clk 0:01:44.2]} 20. Qxe4 {[%clk 0:02:07.6]} 20... Rf8 {[%clk 0:01:43.8]} 21.
f4 {[%clk 0:02:06.7]} 21... Kc7 {[%clk 0:01:43]} 22. Kb1 {[%clk 0:02:05]} 22...
d6 {[%clk 0:01:38.9]} 23. exd6+ {[%clk 0:02:04.7]} 23... Bxd6 {[%clk 0:01:39.3]}
24. Qg6 {[%clk 0:02:04.4]} 24... Be7 {[%clk 0:01:29.9]} 25. Qxg7 {[%clk
0:02:04.2]} 25... Rxf4 {[%clk 0:01:28.8]} 26. Rhe1 {[%clk 0:02:03.5]} 26... Kb6
{[%clk 0:00:14.4]} 27. Rxe7 {[%clk 0:02:01.7]} 27... Nxe7 {[%clk 0:00:15.3]} 28.
Qh6+ {[%clk 0:02:01.1]} 28... Nc6 {[%clk 0:00:10.6]} 29. Qxf4 {[%clk 0:02:00.9]}
29... h3 {[%clk 0:00:11.5]} 30. gxh3 {[%clk 0:01:59.8]} 30... Bxh3 {[%clk
0:00:12.4]} 31. Qe3+ {[%clk 0:01:59.9]} 1-0

[Event "Late-Titled-Tuesday-Blitz-June-04-2024"]
[Site "Chess.com"]
[Date "2024.06.04"]
[Round "8"]
[White "Supelyel"]
[Black "NovakRatko"]
[Result "1-0"]
[WhiteElo "2427"]
[BlackElo "2304"]
[TimeControl "180+1"]
[EndTime "15:24:46 PDT"]
[Termination "Supelyel won by checkmate"]

1. c4 {[%clk 0:03:00.9]} 1... c6 {[%clk 0:02:59.4]} 2. Nf3 {[%clk 0:03:00]} 2...
d5 {[%clk 0:02:59.2]} 3. b3 {[%clk 0:02:58.9]} 3... f6 {[%clk 0:02:57.2]} 4. d4
{[%clk 0:02:57.2]} 4... Bg4 {[%clk 0:02:57.3]} 5. Bb2 {[%clk 0:02:56.9]} 5...
Nd7 {[%clk 0:02:56.6]} 6. Nbd2 {[%clk 0:02:55.9]} 6... e6 {[%clk 0:02:56.4]} 7.
e4 {[%clk 0:02:56]} 7... Bb4 {[%clk 0:02:47.7]} 8. Qc2 {[%clk 0:02:35]} 8...
dxe4 {[%clk 0:02:28.7]} 9. Qxe4 {[%clk 0:02:30.5]} 9... Qe7 {[%clk 0:02:24.3]}
10. Qxg4 {[%clk 0:02:24.5]} 10... Nh6 {[%clk 0:02:16.8]} 11. Qe4 {[%clk
0:02:17.7]} 11... f5 {[%clk 0:02:03.9]} 12. Qe2 {[%clk 0:02:07.7]} 12... O-O-O
{[%clk 0:01:54.6]} 13. a3 {[%clk 0:02:07.6]} 13... Ba5 {[%clk 0:01:53.4]} 14. b4
{[%clk 0:02:05.3]} 14... Bc7 {[%clk 0:01:53.5]} 15. O-O-O {[%clk 0:01:58.3]}
15... g5 {[%clk 0:01:53.2]} 16. h3 {[%clk 0:01:53.4]} 16... g4 {[%clk
0:01:51.2]} 17. hxg4 {[%clk 0:01:45.5]} 17... Nxg4 {[%clk 0:01:49.3]} 18. d5
{[%clk 0:01:16.6]} 18... e5 {[%clk 0:01:42.2]} 19. dxc6 {[%clk 0:01:14.6]} 19...
bxc6 {[%clk 0:01:42.1]} 20. Kb1 {[%clk 0:01:14.5]} 20... h5 {[%clk 0:01:32.3]}
21. c5 {[%clk 0:01:09.7]} 21... Kb8 {[%clk 0:01:31.7]} 22. Nc4 {[%clk
0:01:06.1]} 22... e4 {[%clk 0:01:20]} 23. Nd4 {[%clk 0:01:05]} 23... Kb7 {[%clk
0:00:59.9]} 24. Na5+ {[%clk 0:00:59.1]} 24... Ka8 {[%clk 0:00:57.6]} 25. Naxc6
{[%clk 0:00:52.6]} 25... Qf7 {[%clk 0:00:54.1]} 26. Qa6 {[%clk 0:00:52.4]} 26...
Bb8 {[%clk 0:00:49.1]} 27. Nxd8 {[%clk 0:00:47.1]} 27... Rxd8 {[%clk 0:00:48.2]}
28. Qc6# {[%clk 0:00:45.8]} 1-0